Workbook

Sheet Расчет1
B3: Введите параметры рассчитываемого перекрестка:
B5: Подъезд №1 | D5: Подъезд №2 | F5: Подъезд №3 | H5: Подъезд №4
B6: Nлев1= | C6: 246 | D6: Nлев2= | E6: 282 | F6: Nлев= | G6: 379 | H6: Nлев= | I6: 68
B7: Nпрям1= | C7: 379 | D7: Nпрям2= | E7: 348 | F7: Nпрям= | G7: 302 | H7: Nпрям= | I7: 524
B8: Nправ1= | C8: 350 | D8: Nправ2= | E8: 21 | F8: Nправ= | G8: 34 | H8: Nправ= | I8: 20
B9: x1= | C9: 12 | D9: x2= | E9: 13 | F9: x3= | G9: 14 | H9: x4= | I9: 15
B10: L1= | C10: 21 | D10: L2= | E10: 22 | F10: L3= | G10: 23 | H10: L4= | I10: 19
B11: Vавт прям1= | C11: 40 | D11: Vавт прям2= | E11: =C11 -> 40 | F11: Vавт прям= | G11: =C11 -> 40 | H11: Vавт прям= | I11: =C11 -> 40
B12: Vавт поворот1= | C12: 25 | D12: Vавт поворот2= | E12: =C12 -> 25 | F12: Vавт поворот= | G12: =C12 -> 25 | H12: Vавт поворот=
B13: Радиус поворота= | C13: 35 | D13: Радиус поворота= | E13: 35 | F13: Радиус поворота= | G13: 24 | H13: Радиус поворота= | I13: 35
B14: Выберите ширину полосы движения на подъезде к перекрестку
B15: Для выбора соответствубщей ширины поставьте 1 в соседюю ячейку
B17: Ширина, м
B18: 3 | D18: 3 | F18: 3 | H18: 3 | I18: 1
B19: 3.5 | D19: 3.5 | E19: 1 | F19: 3.5 | G19: 1 | H19: 3.5 | I19: 0
B20: 3.75 | C20: 1 | D20: 3.75 | F20: 3.75 | H20: 3.75
B21: 4.2 | D21: 4.2 | F21: 4.2 | H21: 4.2
B22: 4.8 | D22: 4.8 | F22: 4.8 | H22: 4.8
B23: 5 | D23: 5 | F23: 5 | H23: 5
B25: Постоянные параметры для расчета:
B26: Aавт= | C26: 5
B34: Подъезд №1 | D34: Подъезд №2 | F34: Подъезд №3 | H34: Подъезд №4
B35: Направления движения по полосам на перекрестке
B38: Вариант № 1
C40: 1
B44: Вариант № 2
C45: 0 | E45: 1 | I45: 1
B49: Вариант № 3
C51: 0
B55: Вариант № 4

Sheet Расчеты (Скрытые)
B4: Определение потоков насыщения
B5: Подъезд №1 | D5: Подъезд №2 | F5: Подъезд №3 | H5: Подъезд №4
B6: 1850 | C6: =B6*Расчет1!C18 -> 0 | D6: 1850 | E6: =D6*Расчет1!E18 -> 0 | F6: 1850 | G6: =F6*Расчет1!G18 -> 0 | H6: 1850 | I6: =H6*Расчет1!I18 -> 1850
B7: 1920 | C7: =B7*Расчет1!C19 -> 0 | D7: 1920 | E7: =D7*Расчет1!E19 -> 1920 | F7: 1920 | G7: =F7*Расчет1!G19 -> 1920 | H7: 1920 | I7: =H7*Расчет1!I19 -> 0
B8: 1970 | C8: =B8*Расчет1!C20 -> 1970 | D8: 1970 | E8: =D8*Расчет1!E20 -> 0 | F8: 1970 | G8: =F8*Расчет1!G20 -> 0 | H8: 1970 | I8: =H8*Расчет1!I20 -> 0
B9: 2075 | C9: =B9*Расчет1!C21 -> 0 | D9: 2075 | E9: =D9*Расчет1!E21 -> 0 | F9: 2075 | G9: =F9*Расчет1!G21 -> 0 | H9: 2075 | I9: =H9*Расчет1!I21 -> 0
B10: 2475 | C10: =B10*Расчет1!C22 -> 0 | D10: 2475 | E10: =D10*Расчет1!E22 -> 0 | F10: 2475 | G10: =F10*Расчет1!G22 -> 0 | H10: 2475 | I10: =H10*Расчет1!I22 -> 0
B11: 2700 | C11: =B11*Расчет1!C23 -> 0 | D11: 2700 | E11: =D11*Расчет1!E23 -> 0 | F11: 2700 | G11: =F11*Расчет1!G23 -> 0 | H11: 2700 | I11: =H11*Расчет1!I23 -> 0
B12: Сумм | C12: =SUM(C6:C11) -> 1970 | E12: =SUM(E6:E11) -> 1920 | G12: =SUM(G6:G11) -> 1920 | I12: =SUM(I6:I11) -> 1850
B13: =C12 -> 1970 | C13: =C12 -> 1970 | D13: =E12 -> 1920 | E13: =E12 -> 1920 | F13: =G12 -> 1920 | G13: =G12 -> 1920 | H13: =I12 -> 1850 | I13: =I12 -> 1850
B15: Расчет интенсивнотей, коэффициентов M и Y
B16: Подъезд №1 | D16: Подъезд №2 | F16: Подъезд №3 | H16: Подъезд №4
B17: Направления движения по полосам на перекрестке
B20: Вариант № 1
B21: Лев,% | C21: Пр%
A22: прямо-Ni | B22: =Расчет1!C7/2 -> 189.5 | C22: =Расчет1!C7/2 -> 189.5 | D22: =Расчет1!E7/2 -> 174 | E22: =Расчет1!E7/2 -> 174 | F22: =Расчет1!G7/2 -> 151 | G22: =Расчет1!G7/2 -> 151 | H22: =Расчет1!I7/2 -> 262 | I22: =Расчет1!I7/2 -> 262
A23: налево-Ni | B23: =Расчет1!C6 -> 246 | C23: =0 -> 0 | D23: =Расчет1!E6 -> 282 | E23: =0 -> 0 | F23: =Расчет1!G6 -> 379 | G23: =0 -> 0 | H23: =Расчет1!I6 -> 68 | I23: =0 -> 0
A24: право-Ni | B24: =0 -> 0 | C24: =Расчет1!C8 -> 350 | D24: =0 -> 0 | E24: =Расчет1!E8 -> 21 | F24: =0 -> 0 | G24: =Расчет1!G8 -> 34 | H24: =0 -> 0 | I24: =Расчет1!I8 -> 20
A25: Сумм | B25: =SUM(B22:B24) -> 435.5 | C25: =SUM(C22:C24) -> 539.5 | D25: =SUM(D22:D24) -> 456 | E25: 195 | F25: 530 | G25: 185 | H25: 330 | I25: 282
A26: прямо-a | B26: =ROUND(B22/(B22+B23+B24)*100,0) -> 44 | C26: 35 | D26: 38 | E26: 89 | F26: 28 | G26: 82 | H26: 79 | I26: 93
A27: налево-b | B27: =ROUND(B23/(B22+B23+B24)*100,0) -> 56 | C27: 0 | D27: 62 | E27: 0 | F27: 72 | G27: 0 | H27: 21 | I27: 0
A28: право-c | B28: =ROUND(B24/(B22+B23+B24)*100,0) -> 0 | C28: 65 | D28: 0 | E28: 11 | F28: 0 | G28: 18 | H28: 0 | I28: 7
B29: Лев,% | C29: Пр%
A30: Mhij | B30: =(B13*100)/(B26+1.75*B27+1.25*B28) -> 1387.323944 | C30: =(C13*100)/(C26+1.75*C27+1.25*C28) -> 1694.623656 | D30: =(D13*100)/(D26+1.75*D27+1.25*D28) -> 1310.580205 | E30: 1868.613139 | F30: 1246.753247 | G30: 1837.320574 | H30: 1598.272138 | I30: 1818.181818
A31: yi | B31: =B25/B30 -> 0.3139137056 | C31: =C25/C30 -> 0.3183597716 | D31: =D25/D30 -> 0.3479375 | E31: 0.1043554687 | F31: 0.4251041667 | G31: 0.1006901042 | H31: 0.206472973 | I31: 0.1551
A32: Yподъезд | B32: =MAX(B31:C31)*Расчет1!$C40 -> 0.3183597716 | D32: =MAX(D31:E31)*Расчет1!$E40 -> 0 | F32: =MAX(F31:G31)*Расчет1!$G40 -> 0 | H32: =MAX(H31:I31)*Расчет1!$I40 -> 0
B35: Вариант № 2
B36: Лев,% | C36: Пр%
A37: прямо-Ni | B37: =Расчет1!C7/2 -> 189.5 | C37: =Расчет1!$C$7/2 -> 189.5 | D37: =Расчет1!E7/2 -> 174 | E37: =Расчет1!E7/2 -> 174 | F37: =Расчет1!G7/2 -> 151 | G37: =Расчет1!G7/2 -> 151 | H37: =Расчет1!I7/2 -> 262 | I37: =Расчет1!I7/2 -> 262
A38: налево-Ni | B38: =0 -> 0 | C38: =0 -> 0 | D38: =0 -> 0 | E38: =0 -> 0 | F38: =0 -> 0 | G38: =0 -> 0 | H38: =0 -> 0 | I38: =0 -> 0
A39: право-Ni | B39: =0 -> 0 | C39: =Расчет1!$C$8 -> 350 | D39: =0 -> 0 | E39: =Расчет1!E8 -> 21 | F39: =0 -> 0 | G39: =Расчет1!G8 -> 34 | H39: =0 -> 0 | I39: =Расчет1!I8 -> 20
A40: Сумм | B40: =SUM(B37:B39) -> 189.5 | C40: =SUM(C37:C39) -> 539.5 | D40: =SUM(D37:D39) -> 174 | E40: 195 | F40: 151 | G40: 185 | H40: 262 | I40: 282
A41: прямо-a | B41: =ROUND(B37/(B37+B38+B39)*100,0) -> 100 | C41: 35 | D41: =ROUND(D37/(D37+D38+D39)*100,0) -> 100 | E41: 89 | F41: 100 | G41: 82 | H41: 100 | I41: 93
A42: налево-b | B42: =ROUND(B38/(B37+B38+B39)*100,0) -> 0 | C42: 0 | D42: =ROUND(D38/(D37+D38+D39)*100,0) -> 0 | E42: 0 | F42: 0 | G42: 0 | H42: 0 | I42: 0
A43: право-c | B43: =ROUND(B39/(B37+B38+B39)*100,0) -> 0 | C43: 65 | D43: =ROUND(D39/(D37+D38+D39)*100,0) -> 0 | E43: 11 | F43: 0 | G43: 18 | H43: 0 | I43: 7
B44: Лев,% | C44: Пр%
A45: Mhij | B45: =525*Расчет1!C9 -> 6300 | C45: =(C13*100)/(C41+1.75*C42+1.25*C43) -> 1694.623656 | D45: =525*Расчет1!E9 -> 6825 | E45: =(E13*100)/(E41+1.75*E42+1.25*E43) -> 1868.613139 | F45: =525*Расчет1!G9 -> 7350 | G45: =(G13*100)/(G41+1.75*G42+1.25*G43) -> 1837.320574 | H45: =525*Расчет1!I9 -> 7875 | I45: =(I13*100)/(I41+1.75*I42+1.25*I43) -> 1818.181818
A46: yi | B46: =B40/B45 -> 0.03007936508 | C46: =C40/C45 -> 0.3183597716 | D46: =D40/D45 -> 0.02549450549 | E46: 0.1043554687 | F46: 0.02054421769 | G46: 0.1006901042 | H46: 0.03326984127 | I46: 0.1551
A47: Yподъезд | B47: =MAX(B46:C46)*Расчет1!C45 -> 0 | D47: =MAX(D46:E46)*Расчет1!E45 -> 0.1043554687 | F47: =MAX(F46:G46)*Расчет1!G45 -> 0 | H47: =MAX(H46:I46)*Расчет1!I45 -> 0.1551
B49: Вариант №3
B50: Лев,% | C50: Пр%
A51: прямо-Ni | B51: =0 -> 0 | C51: =Расчет1!C7/2 -> 189.5 | D51: =0 -> 0 | E51: =Расчет1!E7/2 -> 174 | F51: =0 -> 0 | G51: =Расчет1!G7/2 -> 151 | H51: =0 -> 0 | I51: =Расчет1!I7/2 -> 262
A52: налево-Ni | B52: =Расчет1!C6 -> 246 | C52: =0 -> 0 | D52: =Расчет1!E6 -> 282 | E52: =0 -> 0 | F52: =Расчет1!G6 -> 379 | G52: =0 -> 0 | H52: =Расчет1!I6 -> 68 | I52: =0 -> 0
A53: право-Ni | B53: =0 -> 0 | C53: =Расчет1!C8 -> 350 | D53: =0 -> 0 | E53: =Расчет1!E8 -> 21 | F53: =0 -> 0 | G53: =Расчет1!G8 -> 34 | H53: =0 -> 0 | I53: =Расчет1!I8 -> 20
A54: Сумм | B54: =SUM(B51:B53) -> 246 | C54: =SUM(C51:C53) -> 539.5 | D54: =SUM(D51:D53) -> 282 | E54: 195 | F54: 379 | G54: 185 | H54: 68 | I54: 282
A55: прямо-a | B55: =ROUND(B51/(B51+B52+B53)*100,0) -> 0 | C55: 35 | D55: =ROUND(D51/(D51+D52+D53)*100,0) -> 0 | E55: 89 | F55: 0 | G55: 82 | H55: 0 | I55: 93
A56: налево-b | B56: =ROUND(B52/(B51+B52+B53)*100,0) -> 100 | C56: 0 | D56: =ROUND(D52/(D51+D52+D53)*100,0) -> 100 | E56: 0 | F56: 100 | G56: 0 | H56: 100 | I56: 0
A57: право-c | B57: =ROUND(B53/(B51+B52+B53)*100,0) -> 0 | C57: 65 | D57: =ROUND(D53/(D51+D52+D53)*100,0) -> 0 | E57: 11 | F57: 0 | G57: 18 | H57: 0 | I57: 7
B58: Лев,% | C58: Пр%
A59: Mhij | B59: =3000/(1+1.525/Расчет1!C13) -> 2874.743326 | C59: =(C13*100)/(C55+1.75*C56+1.25*C57) -> 1694.623656 | D59: =3000/(1+1.525/Расчет1!E13) -> 2874.743326 | E59: =(E13*100)/(E55+1.75*E56+1.25*E57) -> 1868.613139 | F59: =3000/(1+1.525/Расчет1!G13) -> 2820.763957 | G59: =(G13*100)/(G55+1.75*G56+1.25*G57) -> 1837.320574 | H59: =3000/(1+1.525/Расчет1!I13) -> 2874.743326 | I59: =(I13*100)/(I55+1.75*I56+1.25*I57) -> 1818.181818
A60: yi | B60: =B54/B59 -> 0.08557285714 | C60: =C54/C59 -> 0.3183597716 | D60: =D54/D59 -> 0.09809571429 | E60: 0.1043554687 | F60: 0.1343607639 | G60: 0.1006901042 | H60: 0.02365428571 | I60: 0.1551
A61: Yподъезд | B61: =MAX(B60:C60)*Расчет1!C51 -> 0 | D61: =MAX(D60:E60)*Расчет1!E51 -> 0 | F61: =MAX(F60:G60)*Расчет1!G51 -> 0 | H61: =MAX(H60:I60)*Расчет1!I51 -> 0
B63: Вариант №3
B64: Лев,% | C64: Пр%
